Cogmind - Beta 14 @@@ ROGUE MODE // 2024.11.19 @ 09:44:24 Player: Komeiji O. Result: Destroyed by KZ-88Q(R) with Subdweller Machine Gun Performance ------------- Evolutions (0) 0 Regions Visited (2) 400 Robots Destroyed (23) 115 Value Destroyed (609) 609 Prototype IDs (0) 0 Alien Tech Used (0) 0 Bonus (0) 0 TOTAL SCORE: 1124 Bonus ------- None Cogmind --------- Core Integrity 0/250 Matter 177/300 Energy 180/200 System Corruption 0% Temperature Cool (0) Movement Rolling (215) Ox9 Location -10/Subcaves Parts ------- > --- POWER (1) -------- Subdweller Power Source > --- PROPULSION (2) --- Light Treads Wheel > --- UTILITY (2) ------ Huge Storage Unit Light Armor Plating > --- WEAPON (2) ------- Subdweller Machine Gun > --- INVENTORY (25) --- Light Ion Engine Subdweller Power Source Light Treads Makeshift Leg Subdweller Monowheel Subdweller Monowheel Disposable Heat Sink Small Storage Unit Large Storage Unit Structural Scanner Subdweller Optics Seismic Detector Scrap Shield Subdweller Beam Cannon Grenade Launcher Peak State ------------ > --- POWER ------------ Subdweller Power Source > --- PROPULSION ------- Light Treads Subdweller Monowheel > --- UTILITY ---------- Large Storage Unit Seismic Detector > --- WEAPON ----------- Subdweller Machine Gun Grenade Launcher > --- INVENTORY -------- Light Ion Engine Subdweller Power Source Light Treads Wheel Wheel Subdweller Monowheel Disposable Heat Sink Small Storage Unit Huge Storage Unit Structural Scanner Subdweller Optics Light Armor Plating Medium Laser Battle Rifle Grenade Launcher [Rating: 12] Favorites ----------- Power Light Ion Engine Engine Light Ion Engine Propulsion Light Treads Treads Light Treads Wheel Wheel Utility Seismic Detector Device Seismic Detector Storage Large Storage Unit Protection Light Armor Plating Weapon Medium Laser Energy Gun Medium Laser Ballistic Gun Subdweller Machine Gun Launcher Grenade Launcher Build | -11 -10 -10 ------- Run | Yrd Mat Sub Slots Evolved . | . . . Power . | . . . Propulsion . | . . . Utility . | . . . Weapon . | . . . Parts Attached 36 | 7 6 23 Power 4 | 1 1 2 Engine 4 | 1 1 2 Core . | . . . Reactor . | . . . Propulsion 9 | 2 2 5 Treads 5 | 1 2 2 Leg . | . . . Wheel 4 | 1 . 3 Hover . | . . . Flight . | . . . Utility 11 | 2 3 6 Device 5 | 1 2 2 Storage 3 | 1 1 1 Processor . | . . . Hackware . | . . . Protection 3 | . . 3 Artifact . | . . . Weapon 12 | 2 . 10 Energy Gun 3 | 1 . 2 Energy Cannon . | . . . Ballistic Gun 5 | 1 . 4 Ballistic Cannon . | . . . Launcher 4 | . . 4 Special Weapon . | . . . Impact Weapon . | . . . Slashing Weapon . | . . . Piercing Weapon . | . . . Special Melee Weapon . | . . . Unidentified Prototypes . | . . . Parts Lost 7 | . . 7 Power 1 | . . 1 Propulsion 3 | . . 3 Utility . | . . . Weapon 3 | . . 3 Highest Loss Streak 2 | . . 2 To Critical Strikes . | . . . Average Slot Usage (%) 99 | . 100 99 Engine 13 | . 14 13 Treads 23 | . 27 21 Wheel 3 | . . 6 Device 12 | . 14 12 Storage 14 | . 14 14 Protection 1 | . . 1 Energy Gun 7 | . 14 3 Ballistic Gun 16 | . 14 17 Launcher 3 | . . 6 Peak Build Rating 12 | 7 8 12 Average Rating 9 | 5 7 10 On Entrance 5 | . 7 8 Naked Turns . | . . . Heaviest Build 95 | 13 28 95 Greatest Support 40 | 20 40 40 Greatest Overweight (x) 9 | 1 2 9 Average Overweight (x) 1 | . . 2 Largest Inventory Capacity 25 | 8 15 25 Average Capacity 17 | 7 14 19 Most Carried 17 | 6 15 17 Average Carried 14 | 3 13 15 Final Capacity 25 | 8 15 25 Final Carried 16 | 6 15 16 Class Distribution -------------------- 94% | Mutant 5% | Scavenger-Mutant Dominant Class ---------------- Mutant | -10/Materials Mutant | -10/Subcaves Resources | -11 -10 -10 ----------- Run | Yrd Mat Sub Matter Collected 728 | 208 224 296 Remotely . | . . . Salvage Created 648 | 14 338 296 Parts 44 | 4 25 15 Haulers Intercepted . | . . . Recyclers Shooed 1 | . 1 . Parts Field Recycled . | . . . Retrieved Matter . | . . . Parts Self-Destructed . | . . . Prevented . | . . . Kills | -11 -10 -10 ------- Run | Yrd Mat Sub Combat Hostiles Destroyed 18 | . 10 8 Guns 12 | . 8 4 AOE 6 | . 2 4 Classes Destroyed 7 | 1 5 1 Builder 1 | . 1 . Tunneler 1 | 1 . . Operator 1 | . 1 . Watcher 2 | . 2 . Swarmer 6 | . 6 . Grunt 4 | . 4 . Subdweller 8 | . . 8 Best Kill Streak 6 | 1 6 3 Combat Bots Only 3 | . 3 3 Max Kills in Single Turn 5 | 1 5 1 Gunslinging . | . . . Exploded 2 | . 2 1 Melee . | . . . Uniques/NPCs Destroyed . | . . . Combat | -11 -10 -10 -------- Run | Yrd Mat Sub Hostile Shots Fired 105 | . 55 50 Missed 25 | . 11 14 Damage Taken 1482 | . 447 1035 Core 261 | . 81 180 Absorbed by Shields . | . . . Core Remaining (%) 100 | 100 . . Volleys Fired 78 | 2 32 44 Largest 2 | 2 2 2 Hottest 80 | 70 70 80 Shots Fired 136 | 4 64 68 Gun 124 | 4 64 56 Cannon . | . . . Launcher 12 | . . 12 Special . | . . . Kinetic 78 | 2 32 44 Thermal 46 | 2 32 12 Explosive 12 | . . 12 Electromagnetic . | . . . Robot Hit Streak 13 | 2 13 12 Robot Miss Streak 2 | 1 2 2 Penetration Max . | . . . Secondary Targets 1 | . 1 . Max Gunslinging Chain 1 | . 1 . Shots Hit Robots 71 | 3 39 29 Core Hits 36 | 1 23 12 Critical Kills . | . . . Critical Parts Destroyed . | . . . Critical Strikes 2 | . 1 1 Burn 2 | . 1 1 Melee Attacks . | . . . Impact . | . . . Slashing . | . . . Piercing . | . . . Sneak Attacks . | . . . Combat Hostiles . | . . . Follow-up Attacks . | . . . Damage Inflicted 1549 | 37 718 794 Guns 922 | 37 488 397 Cannons . | . . . Explosions 627 | . 230 397 Melee . | . . . Ramming . | . . . Kinetic 535 | 25 215 295 Thermal 458 | 12 344 102 Explosive 397 | . . 397 Electromagnetic 159 | . 159 . Impact . | . . . Slashing . | . . . Piercing . | . . . Highest Corruption . | . . . Average Corruption . | . . . Corruption Purged . | . . . Corruption Blocked . | . . . Overload Shots . | . . . Overflow Damage . | . . . Projectiles . | . . . Explosions . | . . . Melee . | . . . Knockbacks . | . . . Impact . | . . . Kinetic . | . . . Secondary . | . . . Self-Inflicted Damage 78 | . 29 49 Shots 4 | . 1 3 Rammed . | . . . Targets Rammed . | . . . Kicked . | . . . Crushed . | . . . Highest Temperature 75 | 18 75 . Average Temperature 22 | 10 23 . Received Heat Transfer 249 | . 120 129 Siege Activations . | . . . Robots Corrupted . | . . . Combat Hostiles . | . . . Parts Fried 1 | . 1 . Impact Corruptions . | . . . Robots Melted . | . . . Combat Hostiles . | . . . Parts Melted 2 | . 1 1 Heat Transferred 1345 | 37 938 370 Parts Sabotaged . | . . . Parts Stolen . | . . . Parts Stripped . | . . . Power Chain Reactions 1 | . 1 . Alert | -11 -10 -10 ------- Run | Yrd Mat Sub Peak Influence 228 | 5 228 . Initial 3 | . 3 . Average 64 | 1 68 . Maximum Alert Level 1 | . 1 . Low Security (%) 96 | 100 95 . Level 1 3 | . 4 . Level 2 . | . . . Level 3 . | . . . Level 4 . | . . . Level 5 . | . . . High Security . | . . . Max Security . | . . . Squads Dispatched . | . . . Investigation . | . . . Extermination . | . . . Reinforcement . | . . . Assault . | . . . Garrison . | . . . Intercept . | . . . Searches Triggered . | . . . Construction Impeded . | . . . Haulers Reinforced . | . . . Active Scanning Responses . | . . . Cargo Convoy Interrupts . | . . . Stealth | -11 -10 -10 --------- Run | Yrd Mat Sub Distress Signals 1 | . 1 . Communications Jammed . | . . . Distress Signals . | . . . Times Spotted 27 | . 17 10 Peak Tracking Total 5 | . 5 3 Tactical Retreats . | . . . Traps | -11 -10 -10 ------- Run | Yrd Mat Sub Traps Triggered 3 | . . 3 Indirectly . | . . . Trap Hack Attempts . | . . . Triggered . | . . . Disarmed . | . . . Reprogrammed . | . . . Reused 1 | . . 1 Traps Extracted . | . . . Installed 1 | . . 1 Triggered . | . . . Machines | -11 -10 -10 ---------- Run | Yrd Mat Sub Machines Disabled 2 | . 2 . Max in Single Turn 2 | . 2 . Machines Repaired . | . . . Machines Dismantled . | . . . Machines Sabotaged . | . . . Overloaded Fab Kills . | . . . Hacking | -11 -10 -10 --------- Run | Yrd Mat Sub Machines Accessed 7 | . 7 . Terminals 7 | . 7 . Fabricators . | . . . Repair Stations . | . . . Recycling Units . | . . . Scanalyzers . | . . . Garrison Access . | . . . Total Hacks 19 | . 19 . Successful 12 | . 12 . Failed 7 | . 7 . Catastrophic . | . . . Database Lockouts . | . . . Manual 14 | . 14 . Terminals 19 | . 19 . Fabricators . | . . . Repair Stations . | . . . Recycling Units . | . . . Scanalyzers . | . . . Garrison Access . | . . . Terminal Hacks 5 | . 5 . Branch Access Points 1 | . 1 . Unreport Threat 1 | . 1 . Locate Traps 3 | . 3 . Fabricator Hacks . | . . . Repair Station Hacks . | . . . Recycling Unit Hacks . | . . . Scanalyzer . | . . . Garrison Access Hacks . | . . . Unauthorized Hacks 7 | . 7 . Terminals 7 | . 7 . Botnet 2 | . 2 . Skim 5 | . 5 . Fabricators . | . . . Repair Stations . | . . . Recycling Units . | . . . Scanalyzers . | . . . Garrison Access . | . . . Data Cores Recovered . | . . . Used . | . . . Hacking Detections 6 | . 6 . Full Trace Events . | . . . Feedback Events . | . . . Feedback Blocked . | . . . Robot Schematics Acquired . | . . . Robots Built . | . . . Authchips . | . . . Time . | . . . Total Robot Build Rating . | . . . Part Schematics Acquired . | . . . Parts Built . | . . . Authchips . | . . . Time . | . . . Total Part Build Rating . | . . . Parts Repaired . | . . . Time . | . . . Parts Recycled . | . . . Recycled Matter . | . . . Retrieved Matter . | . . . Retrieved Components . | . . . Parts Scanalyzed . | . . . Part Schematics Acquired . | . . . Parts Damaged . | . . . Bothacking | -11 -10 -10 ------------ Run | Yrd Mat Sub Used RIF Installer . | . . . Robots Hacked . | . . . Non-combat . | . . . Combat . | . . . Robot Hacks Applied . | . . . Relay Couplers Released . | . . . Fabnet Peak Effective % . | . . . Robots Rewired . | . . . Allies Hacked . | . . . Hacks Repelled . | . . . Allies | -11 -10 -10 -------- Run | Yrd Mat Sub Total Allies . | . . . Largest Group . | . . . Highest-Rated Group . | . . . Highest-Rated Ally . | . . . Total Orders . | . . . Ally Attacks . | . . . Total Damage . | . . . Kills . | . . . Allies Corrupted . | . . . Allies Melted . | . . . Intel | -11 -10 -10 ------- Run | Yrd Mat Sub Robot Analysis Total . | . . . Derelict Logs Recovered 1 | . . 1 Drone Launches . | . . . Drone Recoveries . | . . . Exploration | -11 -10 -10 ------------- Run | Yrd Mat Sub Turns Passed 3188 | 80 1220 1888 Spaces Moved 1625 | 63 631 931 Core 3 | 3 . . Treads 1161 | 2 583 576 Legs . | . . . Wheels 461 | 58 48 355 Hover . | . . . Flight . | . . . Fastest Speed 50 | 50 95 150 Average Speed 163 | 92 155 174 Slowest Speed 215 | 160 160 215 Overloaded Moves . | . . . Propulsion Burnouts . | . . . Robots Hopped . | . . . Cave-ins Triggered . | . . . Exploration Rate (%) 48 | 5 95 45 Regions Visited 2 Branch Regions 1 Pre-discovered Areas 1 | . 1 . Known Exits Taken . | . . . Unknown Exits Taken 2 | 1 1 . Scrap Searched 1 | . . 1 Spaces Dug . | . . . Terrain Destroyed 74 | . 3 71 Melee . | . . . Projectile . | . . . AOE 74 | . 3 71 Terrain Rammed . | . . . Walls Destroyed . | . . . Machines Disabled . | . . . Actions | -11 -10 -10 --------- Run | Yrd Mat Sub Total 2001 | 77 805 1119 Wait 228 | . 122 106 Move 1623 | 62 630 931 Hop . | . . . Pick Up 26 | 6 11 9 Fast Attach 7 | 7 . . Attach 7 | . . 7 Detach . | . . . Swap 22 | . 6 16 Drop 9 | . 4 5 Fire 78 | 2 32 44 Melee . | . . . Ram . | . . . Kick . | . . . Crush . | . . . Escape Stasis . | . . . Rewire . | . . . Trap 1 | . . 1 Miscellaneous . | . . . Route ------- -11/Scrapyard -10/Materials (discovered 5 exits: [*Mat x3] / *Min / *Sub) -10/Subcaves (discovered 3 exits: Mat x2 / Rec) History --------- Turn | Location | Event 33 | -11/Scrapyard | Discovered new exit (range 15) 81 | -11/Scrapyard | Entered Materials 119 | -10/Materials | Identified exit to Mines 304 | -10/Materials | Build established: Mutant 356 | -10/Materials | Discovered new exit (range 16) 552 | -10/Materials | Discovered new exit (range 6) 841 | -10/Materials | Discovered new exit (range 10) 1038 | -10/Materials | Learned location of 2 exits from Mines 1096 | -10/Materials | Learned location of 2 exits from Subcaves 1145 | -10/Materials | Learned location of Recycling (-7) 1178 | -10/Materials | Discovered new exit (range 7) 1185 | -10/Materials | Learned location of 1 exit from Storage 1214 | -10/Materials | Learned location of 2 exits from Subcaves 1251 | -10/Materials | Learned Storage trap positions 1301 | -10/Materials | Entered Subcaves 1302 | -10/Subcaves | Identified exit to Materials 1302 | -10/Subcaves | Identified exit to Recycling 1416 | -10/Subcaves | Shifting Twisted Machinery released Battle Rifle 2327 | -10/Subcaves | Core integrity fell below 50% 2382 | -10/Subcaves | Learned Materials security intel 3020 | -10/Subcaves | Ambushed by Subdweller buried in earth 3160 | -10/Subcaves | Core integrity fell below 20% 3189 | -10/Subcaves | Destroyed by KZ-88Q(R) with Subdweller Machine Gun Last Messages --------------- 03050_ Acquired 38 matter. 03054_ Acquired Sub. Beam Cannon. 03057_ Searching scrap... 03057_ Found Mak. Leg. 03057_ Found 67 Matter. 03058_ Acquired 67 matter. 03058_ The unstable cave ceiling collapses. 03062_ Acquired Mak. Leg. 03086_ Acquired 8 matter. 03159_ Triggered Piercing Trap. 03159_ Spikes shoot up from the floor. 03159_ Critical hit (Impale). 03173_ Med. Laser destroyed. 03180_ Triggered Piercing Trap. 03180_ Spikes shoot up from the floor. 03180_ Critical hit (Impale). 03184_ Triggered Piercing Trap. 03184_ Spikes shoot up from the floor. 03184_ Critical hit (Impale). 03189_ Grenade Launcher destroyed. Map ----- +----------------------------------------------------+ | ?????????????????????????????## ##??# | | ?????????????????????????????# #??## | | ?????????????????????????????## #?## | | ??????????????????????????????## ### | | ??????????????????????????????## ## | | ??????????????????????????????# ### | | ??????????????????????????????# ### | | ?????????????????????????????## ## | | ????????????????????????????## #### | | ????????????????????????????# #??# | | ?????????????????###????????# ### #?# | | ????????????????## ##???????## ##?## #### | | ????????????????# #####????## ## #???###??### | | ???????????????## ##???## ######??????????? | | ??????????????## ##??# #???????????????? | | ??????????????# #### #???????????????? | | ??????????????## ## ##??????????????? | | ???????????????# #### """ #??????????????? | | ???????????????#######??## " "# ##??????????????? | | ?????????????????????????# " ## #??????????????? | | ???????????????????########"#### #??????????????? | | ???????????????????""""^ ## ## ##??????????????? | | ?????????????????? """"" ^^ #??????????????? | | ????????????????????#"" ^R ## # #??????????????? | | ????????????????????## ^ ########??????????????? | | ?????????????????????### @ #?????????????????????? | | ???????????????????????# #?????????????????????? | | ???????????????????????##^R#?????????????????????? | | ????????????????????????### ????????????????????? | | ??????????????????????????? ??????????????????? | | ??????????????????????????? #?????????????????? | | ??????????????????????????? ????????????????? | | ??????????????????????????? ## ???????????????? | | ??????????????????????????? ##? ?????????????? | | ??????????????????????????? #??? ????????????? | | ??????????????????????????? ???? ???????????? | | ???????????????????????????? ????? ??????????? | | ???????????????????????????? ?????? ???????????? | | ???????????????????????????? ??????? ???????????? | | ???????????????????????????? ????????????????????? | | ?????????????????????????????????????????????????? | | ?????????????????????????????????????????????????? | | ?????????????????????????????????????????????????? | | ?????????????????????????????????????????????????? | | ?????????????????????????????????????????????????? | | ?????????????????????????????????????????????????? | | ?????????????????????????????????????????????????? | | ?????????????????????????????????????????????????? | | ?????????????????????????????????????????????????? | | ?????????????????????????????????????????????????? | +----------------------------------------------------+ Best States ------------- Heat Dissipation 35 Energy Generation 15 Energy Capacity 200 Matter Stores 300 Matter Capacity 300 Sight Range 16 Terrain Scan Density 10 Armor Coverage 150 Evasion (%) 44 Recoil Reduction 2 Item Schematics ----------------- None Robot Schematics ------------------ None Fabricated ------------ Nothing Alien Tech Used ----------------- None Achievements -------------- None Challenges ------------ None Game ------ Seed HypercooledThermicSuit Manual? 0 Play Time 00:22:47 Cumulative 165.2 hours Start 2024.11.19 @ 09:21:56 End 2024.11.19 @ 09:44:24 Sessions 1 Manual Loads 0 Difficulty Rogue Special Mode None Game No. 60 Rogue 59 Adventurer 1 Explorer 0 Win Type - Total 3 Types 3/0/0/0/0/0/0/0/0 Lore% 50 Gallery% 63 Achievement% 50 Wizard Run 0 Options --------- Layout 0 ASCII 1 Keyboard 1 Movement Vi Keybinds 0 Fullscreen 2 Font 36/Terminus++ Map View 76x50 Zoom Use 0% Tactical HUD 1 Map Filters NONE Filters NONE Steam 1 RUN: 4700b0b6-48ed-473e-9ad0-2dd442522776